fUSD/lending_fUSD_20250514
["ID","MTS","AMOUNT","RATE_DAILY","PERIOD"]
[361017767,1747205950303,-184.8694051,0.000492,30]
[361017768,1747205950341,-293.88054847,0.00049215,30]
[361017769,1747205950380,-249.91751949,0.00049215,30]
[361017770,1747205950417,-150.0,0.00049234,30]
[361017771,1747205950456,-150.0,0.00049254,30]
[361017772,1747205950509,-293.88054847,0.00049265,30]
[361017773,1747205950552,-249.91751949,0.00049265,30]
[361017774,1747205950593,-160.0,0.000493,73]
[361017775,1747205950633,-160.0,0.000493,73]
[361017776,1747205950672,-512.0,0.0004931,30]
[361017777,1747205950712,-210.0,0.0004931,30]
[361017778,1747205950752,-1129.0,0.00049311,120]
[361017779,1747205950793,-500.0,0.00049315,120]
[361017780,1747205950834,-153.69544168,0.00049315,120]
[361017781,1747205950872,-500.0,0.00049315,120]
[361017782,1747205950911,-500.0,0.00049315,120]
[361017783,1747205950951,-500.0,0.00049315,120]
[361017784,1747205950991,-500.0,0.00049315,120]
[361017785,1747205951031,-500.0,0.00049315,120]
[361017786,1747205951072,-500.0,0.00049315,120]
[361017787,1747205951111,-500.0,0.00049315,120]
[361017788,1747205951151,-500.0,0.00049315,120]
[361017789,1747205951190,-500.0,0.00049315,120]
[361017790,1747205951574,-500.0,0.00049315,120]
[361017791,1747205951614,-500.0,0.00049315,120]
[361017792,1747205951652,-225.78977154,0.00049315,120]
[361017793,1747205951691,-151.00114409,0.00049315,30]
[361017794,1747205951735,-293.88054847,0.00049315,30]
[361017795,1747205951776,-204.84681807,0.00049315,30]
[361017796,1747205951817,-249.91751949,0.00049315,30]
[361017797,1747205951856,-299.47346785,0.00049315,30]
[361017798,1747205951894,-151.1800876,0.00049315,30]
[361017799,1747205951931,-181.19151955,0.00049315,30]
[361017800,1747205951971,-168.54613455,0.00049315,30]
[361017801,1747205952009,-154.59937348,0.00049315,30]
[361017802,1747205952047,-151.48951836,0.00049315,30]
[361017803,1747205952089,-201.45249584,0.00049315,30]
[361017804,1747205952128,-199.35110098,0.00049315,30]
[361017805,1747205952175,-500.0,0.00049315,120]
[361017806,1747205954922,782.58789906,0.00043534,30]
[361017807,1747205955088,782.58789906,0.00043591,30]
[361017808,1747205955163,782.58789906,0.00044104,30]
[361017809,1747205955237,782.58789906,0.00044178,30]
[361017810,1747205955495,782.58789906,0.00044462,30]
[361017811,1747205955812,782.58789906,0.00044781,30]
[361017812,1747205956340,232.164,0.00044781,30]
[361017813,1747205956654,782.58789906,0.00045196,30]
[361017814,1747205958321,782.58789906,0.00045404,30]
[361017815,1747205958675,782.58789906,0.00045552,30]
[361017816,1747205959180,782.58789906,0.00045993,30]
[361017831,1747206631651,-200.0,0.00010124,2]
[361017832,1747206631662,-250.0,0.00010136,2]
[361017834,1747206631672,-1002.0,0.00010149,2]
[361017838,1747206631862,-249.38,0.00010149,2]
[361017839,1747206631872,-1000.0,0.00010582,2]
[361017840,1747206631882,-1241.63009887,0.00010582,2]
[361017841,1747206631892,-46.83990649,0.00010857,2]
[361017842,1747206631904,-1229.23507339,0.00010857,2]
[361017843,1747206631914,-326.12014591,0.00010857,2]
[361017844,1747206631941,-501.84968142,0.00010857,2]
[361017845,1747206632023,-372.03017267,0.00010857,2]
[361017846,1747206632033,-165.64501677,0.00010857,2]
[361017853,1747206637685,-134.35498323,0.00010857,2]
[361017854,1747206637697,-538.7921396,0.00010858,2]
[361017855,1747206637709,-615.07176696,0.00010858,2]
[361017856,1747206637721,-1276.07497987,0.00010858,2]
[361017857,1747206637731,-172.85706745,0.000109,2]
[361017858,1747206637741,-300.0,0.00010956,2]
[361017859,1747206637750,-400.0,0.00010958,2]
[361017860,1747206637759,-230.45052758,0.00010958,2]
[361017861,1747206637769,-400.0,0.00010958,2]
[361017862,1747206637779,-400.0,0.00010958,2]
[361017863,1747206637788,-400.0,0.00010958,2]
[361017864,1747206637798,-400.0,0.00010958,2]
[361017865,1747206637807,-400.0,0.00010958,2]
[361017866,1747206637817,-400.0,0.00010958,2]
[361017867,1747206637828,-400.0,0.00010958,2]
[361017868,1747206637837,-400.0,0.00010958,2]
[361017869,1747206637847,-400.0,0.00010958,2]
[361017870,1747206637858,-158.84315963,0.00010958,2]
[361017871,1747206637868,-400.0,0.00010958,2]
[361017872,1747206637877,-403.75834098,0.00010958,2]
[361017873,1747206637888,-400.0,0.00010958,2]
[361017874,1747206637898,-400.0,0.00010958,2]
[361017875,1747206637909,-400.0,0.00010958,2]
[361017876,1747206637919,-230.81201506,0.00010958,2]
[361017877,1747206637928,-400.0,0.00010958,2]
[361017878,1747206637939,-402.93877075,0.00010958,2]
[361017879,1747206637948,-400.0,0.00010958,2]
[361017880,1747206637960,-402.78285447,0.00010958,2]
[361017881,1747206637970,-400.0,0.00010958,2]
[361017882,1747206637980,-400.0,0.00010958,2]
[361017883,1747206637990,-400.0,0.00010958,2]
[361017884,1747206637999,-601.16,0.00010958,2]
[361017885,1747206638009,-400.88532345,0.00010958,2]
[361017886,1747206638019,-590.16,0.00010958,2]
[361017888,1747206638028,-400.0,0.00010958,2]
[361017889,1747206638039,-400.0,0.00010958,2]
[361017890,1747206638048,-400.0,0.00010958,2]
[361017891,1747206638058,-569.56,0.00010958,2]
[361017892,1747206638067,-400.0,0.00010958,2]
[361017894,1747206638077,-519.0380317,0.00010958,2]
[361017896,1747206638086,-400.0,0.00010958,2]
[361017898,1747206638096,-500.0,0.00010958,2]
[361017900,1747206638105,-459.7,0.00010958,2]
[361017902,1747206638115,-400.0,0.00010958,2]
[361017904,1747206638125,-400.57358339,0.00010958,2]
[361017906,1747206638134,-400.0,0.00010958,2]
[361017908,1747206638144,-402.15828058,0.00010958,2]
[361017910,1747206638153,-668.0,0.00010958,2]
[361017912,1747206638164,-500.0,0.00010958,2]
[361017914,1747206638173,-500.0,0.00010958,2]
[361017916,1747206638182,-543.52706252,0.00010958,2]
[361017918,1747206638192,-847.2,0.00010958,2]
[361017920,1747206638201,-400.0,0.00010958,2]
[361017922,1747206638210,-400.0,0.00010958,2]
[361017924,1747206638220,-400.0,0.00010958,2]
[361017926,1747206638229,-406.65971303,0.00010958,2]
[361017928,1747206638238,-400.0,0.00010958,2]
[361017930,1747206638248,-409.91185768,0.00010958,2]
[361017932,1747206638267,-410.87342227,0.00010958,2]
[361017934,1747206638287,-400.0,0.00010958,2]
[361017936,1747206638297,-400.0,0.00010958,2]
[361017938,1747206638306,-400.0,0.00010958,2]
[361017940,1747206638315,-400.0,0.00010958,2]
[361017942,1747206638325,-400.0,0.00010958,2]
[361017944,1747206638334,-400.0,0.00010958,2]
[361017946,1747206638343,-400.0,0.00010958,2]
[361017948,1747206638353,-400.0,0.00010958,2]
[361017950,1747206638363,-658.86,0.00010958,2]
[361017952,1747206638372,-400.0,0.00010958,2]
[361017954,1747206638382,-400.0,0.00010958,2]
[361017956,1747206638392,-400.0,0.00010958,2]
[361017958,1747206638402,-400.0,0.00010958,2]
[361017960,1747206638411,-400.0,0.00010958,2]
[361017962,1747206638421,-324.25621138,0.00010958,2]
[361017964,1747206638430,-400.0,0.00010958,2]
[361017966,1747206638439,-400.0,0.00010958,2]
[361017968,1747206638448,-400.0,0.00010958,2]
[361017970,1747206638458,-400.0,0.00010958,2]
[361017971,1747206638467,-400.0,0.00010958,2]
[361017973,1747206638478,-401.02999266,0.00010958,2]
[361017975,1747206638487,-767.64,0.00010958,2]
[361017978,1747206638497,-400.25758975,0.00010958,2]
[361017979,1747206638506,-189.41987229,0.00010958,2]
[361017981,1747206638516,-400.0,0.00010958,2]
[361017984,1747206638526,-400.0,0.00010958,2]
[361017986,1747206638535,-400.0,0.00010958,2]
[361017988,1747206638545,-400.0,0.00010958,2]
[361017990,1747206638555,-400.0,0.00010958,2]
[361017992,1747206638564,-432.3707923,0.00010958,2]
[361017994,1747206638574,-400.0,0.00010958,2]
[361017996,1747206638583,-400.0,0.00010958,2]
[361017998,1747206638592,-400.0,0.00010958,2]
[361018000,1747206638602,-400.0,0.00010958,2]
[361018002,1747206638611,-400.0,0.00010958,2]
[361018004,1747206638621,-400.0,0.00010958,2]
[361018005,1747206638630,-401.04654245,0.00010958,2]
[361018006,1747206638639,-400.0,0.00010958,2]
[361018007,1747206638649,-400.0,0.00010958,2]
[361018008,1747206638659,-400.0,0.00010958,2]
[361018009,1747206638668,-138.12590692,0.00010958,2]
[361018010,1747206638703,-279.18409308,0.00010958,2]
[361018011,1747206638712,-400.0,0.00010958,2]
[361018012,1747206638722,-400.0,0.00010958,2]
[361018013,1747206638731,-400.0,0.00010958,2]
[361018014,1747206638740,-400.0,0.00010958,2]
[361018015,1747206638750,-400.0,0.00010958,2]
[361018016,1747206638760,-400.0,0.00010958,2]
[361018017,1747206638769,-400.0,0.00010958,2]
[361018018,1747206638779,-400.0,0.00010958,2]
[361018019,1747206638789,-400.78321181,0.00010958,2]
[361018020,1747206638798,-400.0,0.00010958,2]
[361018021,1747206638808,-400.0,0.00010958,2]
[361018022,1747206638818,-400.0,0.00010958,2]
[361018023,1747206638828,-400.0,0.00010958,2]
[361018024,1747206638838,-400.0,0.00010958,2]
[361018025,1747206638848,-400.0,0.00010958,2]
[361018026,1747206638858,-400.0,0.00010958,2]
[361018027,1747206638869,-400.0,0.00010958,2]
[361018028,1747206638880,-410.95280923,0.00010958,2]
[361018029,1747206638890,-400.0,0.00010958,2]
[361018030,1747206638900,-400.0,0.00010958,2]
[361018031,1747206638909,-400.0,0.00010958,2]
[361018032,1747206638919,-400.0,0.00010958,2]
[361018033,1747206638929,-400.0,0.00010958,2]
[361018034,1747206638939,-400.0,0.00010958,2]
[361018035,1747206638949,-400.0,0.00010958,2]
[361018036,1747206638958,-400.0,0.00010958,2]
[361018037,1747206638968,-400.0,0.00010958,2]
[361018038,1747206638978,-358.0,0.00010958,2]
[361018039,1747206638988,-400.0,0.00010958,2]
[361018040,1747206638997,-400.0,0.00010958,2]
[361018041,1747206639008,-197.89587374,0.00010958,2]
[361018042,1747206639023,-202.10412626,0.00010958,2]
[361018043,1747206639033,-488.58,0.00010958,2]
[361018044,1747206639042,-400.0,0.00010958,2]
[361018045,1747206639052,-400.0,0.00010958,2]
[361018046,1747206639062,-400.0,0.00010958,2]
[361018047,1747206639071,-408.36237864,0.00010958,2]
[361018048,1747206639081,-400.0,0.00010958,2]
[361018049,1747206639092,-400.0,0.00010958,2]
[361018050,1747206639101,-400.0,0.00010958,2]
[361018051,1747206639111,-534.4864388,0.00010958,2]
[361018052,1747206639121,-400.0,0.00010958,2]
[361018053,1747206639130,-400.0,0.00010958,2]
[361018054,1747206639140,-400.0,0.00010958,2]
[361018055,1747206639150,-400.0,0.00010958,2]
[361018056,1747206639159,-400.0,0.00010958,2]
[361018057,1747206639169,-282.4141511,0.00010958,2]
[361018058,1747206639179,-400.0,0.00010958,2]
[361018059,1747206639189,-400.0,0.00010958,2]
[361018060,1747206639199,-400.0,0.00010958,2]
[361018061,1747206639208,-400.0,0.00010958,2]
[361018062,1747206639217,-400.0,0.00010958,2]
[361018063,1747206639227,-400.0,0.00010958,2]
[361018064,1747206639236,-401.10031461,0.00010958,2]
[361018065,1747206639246,-400.0,0.00010958,2]
[361018066,1747206639257,-400.0,0.00010958,2]
[361018067,1747206639268,-400.0,0.00010958,2]
[361018068,1747206639277,-400.0,0.00010958,2]
[361018069,1747206639287,-400.0,0.00010958,2]
[361018070,1747206639296,-400.0,0.00010958,2]
[361018071,1747206639306,-203.62938846,0.00010958,2]
[361018072,1747206639319,-196.37061154,0.00010958,2]
[361018073,1747206639328,-396.87185499,0.00010958,2]
[361018074,1747206639339,-1485.43,0.00010958,2]
[361018075,1747206639348,-842.57,0.00010958,2]
[361018076,1747206639358,-400.0,0.00010958,2]
[361018077,1747206639367,-174.547771,0.00010958,2]
[361018078,1747206639376,-451.90714715,0.00010958,2]
[361018079,1747206639387,-515.06831206,0.00010958,2]
[361018080,1747206639397,-1808.756094,0.00010958,2]
[361018081,1747206639408,-400.0,0.00010958,2]
[361018082,1747206639420,-508.68,0.00010958,2]
[361018083,1747206639430,-400.0,0.00010958,2]
[361018084,1747206639441,-400.0,0.00010958,2]
[361018085,1747206639451,-400.0,0.00010958,2]
[361018086,1747206639460,-400.0,0.00010958,2]
[361018087,1747206639470,-400.0,0.00010958,2]
[361018088,1747206639482,-400.0,0.00010958,2]
[361018089,1747206639492,-400.0,0.00010958,2]
[361018090,1747206639502,-400.0,0.00010958,2]
[361018091,1747206639511,-400.0,0.00010958,2]
[361018092,1747206639521,-308.8142928,0.00010958,2]
[361018093,1747206639531,-400.0,0.00010958,2]
[361018094,1747206639541,-628.71,0.00010958,2]
[361018095,1747206639551,-407.08742345,0.00010958,2]
[361018096,1747206639560,-1058.31,0.00010958,2]
[361018097,1747206639570,-400.0,0.00010958,2]
[361018098,1747206639579,-518.6,0.00010958,2]
[361018099,1747206639589,-400.0,0.00010958,2]
[361018100,1747206639598,-355.59929042,0.00010958,2]
[361018101,1747206639608,-400.0,0.00010958,2]
[361018102,1747206639617,-917.52873139,0.00010958,2]
[361018103,1747206639630,-2896.06798661,0.00010958,2]
[361018104,1747206639640,-400.0,0.00010958,2]
[361018105,1747206639650,-156.13960389,0.00010958,2]
[361018106,1747206639660,-400.0,0.00010958,2]
[361018107,1747206639669,-172.38180289,0.00010958,2]
[361018108,1747206639679,-414.21,0.00010958,2]
[361018109,1747206639688,-400.0,0.00010958,2]
[361018110,1747206639698,-225.36154782,0.00010958,2]
[361018111,1747206639707,-805.23032404,0.00010958,2]
[361018113,1747206639720,-1976.79967596,0.00010958,2]
[361018115,1747206639729,-337.76160316,0.00010958,2]
[361018117,1747206639739,-400.0,0.00010958,2]
[361018118,1747206639748,-400.0,0.00010958,2]
[361018119,1747206639758,-400.0,0.00010958,2]
[361018120,1747206639767,-400.0,0.00010958,2]
[361018121,1747206639778,-1098.75,0.00010958,2]
[361018122,1747206639794,-400.0,0.00010958,2]
[361018123,1747206639807,-400.0,0.00010958,2]
[361018124,1747206639817,-400.0,0.00010958,2]
[361018125,1747206639827,-252.13509253,0.00010958,2]
[361018126,1747206639837,-400.0,0.00010958,2]
[361018127,1747206639847,-400.0,0.00010958,2]
[361018128,1747206639857,-400.0,0.00010958,2]
[361018129,1747206639866,-400.0,0.00010958,2]
[361018130,1747206639876,-403.97071969,0.00010958,2]
[361018131,1747206639886,-400.0,0.00010958,2]
[361018132,1747206639896,-400.0,0.00010958,2]
[361018133,1747206639906,-400.0,0.00010958,2]
[361018134,1747206639915,-459.74,0.00010958,2]
[361018135,1747206639927,-400.0,0.00010958,2]
[361018136,1747206639936,-890.99,0.00010958,2]
[361018137,1747206639947,-890.99,0.00010958,2]
[361018138,1747206639956,-890.99,0.00010958,2]
[361018139,1747206639965,-400.0,0.00010958,2]
[361018140,1747206639975,-836.69474309,0.00010958,2]
[361018141,1747206640767,-1545.52525691,0.00010958,2]
[361018142,1747206640777,-304.7616186,0.00010958,2]
[361018143,1747206640787,-400.0,0.00010958,2]
[361018144,1747206640797,-400.0,0.00010958,2]
[361018145,1747206640806,-485.79,0.00010958,2]
[361018146,1747206640816,-552.88,0.00010958,2]
[361018147,1747206640826,-593.33,0.00010958,2]
[361018148,1747206640835,-400.0,0.00010958,2]
[361018149,1747206640846,-9.69228397,0.00010958,2]
[361018150,1747206640884,-390.30771603,0.00010958,2]
[361018151,1747206640896,-379.58240641,0.00010958,2]
[361018152,1747206640909,-20.41759359,0.00010958,2]
[361018153,1747206640918,-400.0,0.00010958,2]
[361018154,1747206640928,-400.0,0.00010958,2]
[361018155,1747206640938,-400.0,0.00010958,2]
[361018156,1747206640948,-400.0,0.00010958,2]
[361018157,1747206640958,-400.0,0.00010958,2]
[361018158,1747206640967,-400.0,0.00010958,2]
[361018159,1747206640977,-409.38,0.00010958,2]
[361018160,1747206640986,-400.0,0.00010958,2]
[361018161,1747206640996,-714.07,0.00010958,2]
[361018162,1747206641006,-505.3,0.00010958,2]
[361018163,1747206641015,-400.0,0.00010958,2]
[361018164,1747206641025,-1155.36,0.00010958,2]
[361018165,1747206641035,-400.0,0.00010958,2]
[361018166,1747206641045,-400.0,0.00010958,2]
[361018167,1747206641055,-195.47240641,0.00010958,2]
[361018168,1747206641068,-204.52759359,0.00010958,2]
[361018169,1747206641078,-191.81656641,0.00010958,2]
[361018170,1747206641429,-975.7213348,0.00010498,2]
[361018171,1747206641439,-167.58638224,0.00010958,2]
[361018172,1747206641451,-40.59705135,0.00010958,2]
[361018173,1747206641461,-256.35902462,0.00010958,2]
[361018174,1747206641493,-143.64097538,0.00010958,2]
[361018175,1747206641503,-558.68,0.00010958,2]
[361018176,1747206641512,-150.33467905,0.00010958,2]
[361018177,1747206641522,-408.88,0.00010958,2]
[361018178,1747206641532,-400.0,0.00010958,2]
[361018179,1747206641542,-176.46434557,0.00010958,2]
[361018180,1747206641561,-553.23565443,0.00010958,2]
[361018181,1747206641572,-400.0,0.00010958,2]
[361018182,1747206641582,-1059.2,0.00010958,2]
[361018183,1747206641591,-400.0,0.00010958,2]
[361018184,1747206641601,-663.53,0.00010958,2]
[361018185,1747206641611,-400.0,0.00010958,2]
[361018186,1747206641620,-401.09062881,0.00010958,2]
[361018187,1747206641630,-172.09619561,0.00010958,2]
[361018188,1747206641640,-1319.91,0.00010958,2]
[361018189,1747206641651,-690.39,0.00010958,2]
[361018190,1747206641660,-449.59,0.00010958,2]
[361018191,1747206641670,-657.11,0.00010958,2]
[361018192,1747206641679,-400.0,0.00010958,2]
[361018193,1747206641688,-2536.44,0.00010958,2]
[361018194,1747206641698,-400.0,0.00010958,2]
[361018195,1747206641708,-400.0,0.00010958,2]
[361018196,1747206641717,-400.0,0.00010958,2]
[361018197,1747206641727,-400.0,0.00010958,2]
[361018198,1747206641736,-400.0,0.00010958,2]
[361018199,1747206641745,-400.0,0.00010958,2]
[361018200,1747206641755,-400.0,0.00010958,2]
[361018201,1747206641764,-400.0,0.00010958,2]
[361018202,1747206641773,-556.9,0.00010958,2]
[361018203,1747206641782,-400.0,0.00010958,2]
[361018204,1747206641792,-1226.39,0.00010958,2]
[361018205,1747206641801,-490.55,0.00010958,2]
[361018206,1747206641810,-400.0,0.00010958,2]
[361018207,1747206641820,-400.0,0.00010958,2]
[361018208,1747206641829,-416.36,0.00010958,2]
[361018209,1747206641842,-400.0,0.00010958,2]
[361018210,1747206641852,-400.0,0.00010958,2]
[361018211,1747206641862,-400.0,0.00010958,2]
[361018212,1747206641872,-400.0,0.00010958,2]
[361018213,1747206641882,-750.38,0.00010958,2]
[361018214,1747206641892,-259.38929108,0.00010958,2]
[361018215,1747206641902,-400.0,0.00010958,2]
[361018216,1747206641911,-1436.26,0.00010958,2]
[361018217,1747206641921,-400.0,0.00010958,2]
[361018218,1747206641930,-400.0,0.00010958,2]
[361018219,1747206641940,-400.0,0.00010958,2]
[361018220,1747206641949,-400.0,0.00010958,2]
[361018221,1747206641959,-400.0,0.00010958,2]
[361018222,1747206641968,-400.0,0.00010958,2]
[361018223,1747206641979,-400.0,0.00010958,2]
[361018224,1747206641989,-500.0,0.00010958,2]
[361018225,1747206641998,-400.0,0.00010958,2]
[361018226,1747206642008,-400.0,0.00010958,2]
[361018227,1747206642018,-400.0,0.00010958,2]
[361018228,1747206642028,-522.1,0.00010958,2]
[361018229,1747206642038,-474.62,0.00010958,2]
[361018230,1747206642048,-400.0,0.00010958,2]
[361018231,1747206642058,-400.0,0.00010958,2]
[361018232,1747206642067,-385.75987836,0.00010958,2]
[361018233,1747206642077,-505.93180316,0.00010958,2]
[361018234,1747206642087,-400.0,0.00010958,2]
[361018235,1747206642097,-400.0,0.00010958,2]
[361018236,1747206642107,-628.44,0.00010958,2]
[361018237,1747206642120,-369.9140271,0.00010958,2]
[361018238,1747206642130,-1574.26,0.00010958,2]
[361018239,1747206642140,-400.0,0.00010958,2]
[361018240,1747206642150,-878.71,0.00010958,2]
[361018241,1747206642160,-400.0,0.00010958,2]
[361018242,1747206642170,-286.91168333,0.00010958,2]
[361018243,1747206642180,-446.95,0.00010958,2]
[361018244,1747206642190,-400.0,0.00010958,2]
[361018245,1747206642199,-402.16,0.00010958,2]
[361018246,1747206642209,-356.2288968,0.00010958,2]
[361018247,1747206642219,-1333.87,0.00010958,2]
[361018248,1747206642229,-400.0,0.00010958,2]
[361018249,1747206642238,-400.0,0.00010958,2]
[361018250,1747206642248,-669.09,0.00010958,2]
[361018251,1747206642260,-782.19,0.00010958,2]
[361018252,1747206642270,-400.0,0.00010958,2]
[361018253,1747206642279,-1165.88,0.00010958,2]
[361018254,1747206642289,-1555.28,0.00010958,2]
[361018255,1747206642299,-400.0,0.00010958,2]
[361018256,1747206642310,-400.0,0.00010958,2]
[361018257,1747206642319,-874.97,0.00010958,2]
[361018258,1747206642329,-298.25217145,0.00010958,2]
[361018259,1747206642339,-1234.4,0.00010958,2]
[361018260,1747206642349,-404.59831119,0.00010958,2]
[361018261,1747206642358,-400.0,0.00010958,2]
[361018262,1747206642369,-400.0,0.00010958,2]
[361018263,1747206642378,-400.0,0.00010958,2]
[361018264,1747206642388,-400.0,0.00010958,2]
[361018265,1747206642397,-1839.29,0.00010958,2]
[361018266,1747206642407,-400.0,0.00010958,2]
[361018267,1747206642417,-400.0,0.00010958,2]
[361018268,1747206642426,-400.0,0.00010958,2]
[361018269,1747206642436,-400.0,0.00010958,2]
[361018270,1747206642445,-400.0,0.00010958,2]
[361018271,1747206642455,-683.75,0.00010958,2]
[361018272,1747206642465,-250.0,0.00010958,2]
[361018273,1747206642474,-2068.96,0.00010958,2]
[361018274,1747206642484,-400.0,0.00010958,2]
[361018275,1747206642493,-2149.71,0.00010958,2]
[361018276,1747206642503,-718.47,0.00010958,2]
[361018277,1747206642513,-400.0,0.00010958,2]
[361018278,1747206642523,-400.0,0.00010958,2]
[361018279,1747206642532,-400.0,0.00010958,2]
[361018280,1747206642542,-400.0,0.00010958,2]
[361018281,1747206642551,-401.324151,0.00010958,2]
[361018282,1747206642561,-400.0,0.00010958,2]
[361018284,1747206642571,-405.27019104,0.00010958,2]
[361018285,1747206642579,-408.0875615,0.00010958,2]
[361018286,1747206642589,-1053.32,0.00010958,2]
[361018287,1747206642598,-405.09454469,0.00010958,2]
[361018289,1747206642608,-634.45,0.00010958,2]
[361018291,1747206642617,-400.0,0.00010958,2]
[361018292,1747206642627,-662.22,0.00010958,2]
[361018293,1747206642637,-211.28499596,0.00010958,2]
[361018295,1747206642647,-400.0,0.00010958,2]
[361018296,1747206642657,-400.0,0.00010958,2]
[361018298,1747206642667,-400.0,0.00010958,2]
[361018300,1747206642677,-662.21,0.00010958,2]
[361018302,1747206642686,-400.0,0.00010958,2]
[361018304,1747206642696,-458.07,0.00010958,2]
[361018305,1747206642706,-400.0,0.00010958,2]
[361018306,1747206642716,-1985.62,0.00010958,2]
[361018308,1747206642726,-306.43389179,0.00010958,2]
[361018310,1747206642734,-400.0,0.00010958,2]
[361018312,1747206642744,-400.0,0.00010958,2]
[361018314,1747206642754,-400.0,0.00010958,2]
[361018316,1747206642764,-2793.55,0.00010958,2]
[361018317,1747206642774,-380.0,0.00010958,2]
[361018319,1747206642784,-400.0,0.00010958,2]
[361018320,1747206642793,-506.5,0.00010958,2]
[361018321,1747206642803,-400.0,0.00010958,2]
[361018322,1747206642812,-400.0,0.00010958,2]
[361018323,1747206642823,-400.0,0.00010958,2]
[361018324,1747206642833,-562.53,0.00010958,2]
[361018325,1747206642843,-589.74,0.00010958,2]
[361018326,1747206642853,-240.37812332,0.00010958,2]
[361018327,1747206642863,-400.0,0.00010958,2]
[361018328,1747206642873,-400.0,0.00010958,2]
[361018329,1747206642883,-1128.03,0.00010958,2]
[361018330,1747206642894,-400.0,0.00010958,2]
[361018331,1747206642904,-363.51701279,0.00010958,2]
[361018332,1747206642914,-450.23,0.00010958,2]
[361018333,1747206642923,-404.99059056,0.00010958,2]
[361018334,1747206642933,-400.0,0.00010958,2]
[361018335,1747206642943,-441.4,0.00010958,2]
[361018336,1747206642953,-401.22740328,0.00010958,2]
[361018337,1747206642963,-400.0,0.00010958,2]
[361018338,1747206642973,-445.34,0.00010958,2]
[361018339,1747206642982,-1564.06,0.00010958,2]
[361018340,1747206642992,-400.0,0.00010958,2]
[361018341,1747206643002,-1415.89,0.00010958,2]
[361018342,1747206643012,-400.0,0.00010958,2]
[361018343,1747206643022,-403.55095656,0.00010958,2]
[361018344,1747206643031,-400.0,0.00010958,2]
[361018345,1747206643041,-1466.38,0.00010958,2]
[361018346,1747206643050,-400.0,0.00010958,2]
[361018347,1747206643060,-400.0,0.00010958,2]
[361018348,1747206643070,-1364.13,0.00010958,2]
[361018349,1747206643080,-400.0,0.00010958,2]
[361018350,1747206643091,-400.0,0.00010958,2]
[361018351,1747206643101,-400.33606322,0.00010958,2]
[361018352,1747206643111,-400.0,0.00010958,2]
[361018353,1747206643121,-2839.08,0.00010958,2]
[361018354,1747206643131,-400.0,0.00010958,2]
[361018355,1747206643141,-453.86,0.00010958,2]
[361018356,1747206643151,-1563.23,0.00010958,2]
[361018357,1747206643161,-400.0,0.00010958,2]
[361018358,1747206643171,-400.0,0.00010958,2]
[361018359,1747206643181,-400.0,0.00010958,2]
[361018360,1747206643191,-400.0,0.00010958,2]
[361018361,1747206643201,-400.0,0.00010958,2]
[361018362,1747206643211,-627.19,0.00010958,2]
[361018363,1747206643220,-1603.87,0.00010958,2]
[361018364,1747206643230,-400.0,0.00010958,2]